fUST/lending_fUST_20250531
["ID","MTS","AMOUNT","RATE_DAILY","PERIOD"]
[363357485,1748692251904,-2938.95,0.00019452,2]
[363357486,1748692251915,-151.0,0.00019452,2]
[363357487,1748692251924,-586.28,0.00019452,2]
[363357488,1748692251934,-499.32,0.00019452,2]
[363357489,1748692251944,-1692.57,0.00019452,2]
[363357490,1748692251954,-3129.24,0.00019452,2]
[363357491,1748692251964,-1575.39,0.00019452,2]
[363357492,1748692251973,-430.0,0.00019452,2]
[363357493,1748692251984,-471.27,0.00019452,2]
[363357494,1748692251994,-724.26,0.00019452,2]
[363357495,1748692252003,-614.59,0.00019452,2]
[363357496,1748692252013,-748.23,0.00019452,2]
[363357497,1748692252023,-151.0,0.00019452,2]
[363357498,1748692252033,-835.01,0.00019452,2]
[363357499,1748692252043,-698.08,0.00019452,2]
[363357500,1748692252053,-151.0,0.00019452,2]
[363357501,1748692252063,-430.0,0.00019452,2]
[363357502,1748692252073,-430.0,0.00019452,2]
[363357503,1748692252083,-633.51,0.00019452,2]
[363357504,1748692252093,-430.0,0.00019452,2]
[363357505,1748692252103,-430.0,0.00019452,2]
[363357506,1748692252112,-430.0,0.00019452,2]
[363357507,1748692252121,-430.0,0.00019452,2]
[363357508,1748692252131,-430.0,0.00019452,2]
[363357509,1748692252140,-430.0,0.00019452,2]
[363357510,1748692252150,-430.0,0.00019452,2]
[363357511,1748692252160,-734.66,0.00019452,2]
[363357512,1748692252170,-542.86,0.00019452,2]
[363357513,1748692252181,-430.0,0.00019452,2]
[363357514,1748692252191,-702.37,0.00019452,2]
[363357515,1748692252200,-447.27521055,0.00019452,2]
[363357516,1748692252210,-4229.34,0.00019452,2]
[363357517,1748692252219,-430.0,0.00019452,2]
[363357518,1748692252229,-449.81,0.00019452,2]
[363357519,1748692252238,-774.95,0.00019452,2]
[363357520,1748692252248,-181.08010149,0.00019453,2]
[363357521,1748692252259,-814.212827,0.000195,2]
[363357522,1748692252269,-362.332697,0.000195,2]
[363357523,1748692252279,-362.332697,0.000195,2]
[363357524,1748692252288,-151.0,0.000195,2]
[363357525,1748692252298,-475.777429,0.000195,2]
[363357526,1748692252308,-475.777429,0.000195,2]
[363357527,1748692252318,-1723.783253,0.000195,2]
[363357528,1748692252328,-1723.783253,0.000195,2]
[363357529,1748692252338,-187.78006525,0.00019508,2]
[363357530,1748692252347,-194.72792766,0.00019563,2]
[363357531,1748692252357,-180.05779053,0.00019611,15]
[363357532,1748692252367,-201.93286099,0.00019618,2]
[363357533,1748692252383,-4578.61881295,0.00019659,2]
[363357534,1748692252393,-209.40437684,0.00019673,2]
[363357535,1748692252403,-430.0,0.00019726,2]
[363357536,1748692252415,-593.18,0.00019726,2]
[363357537,1748692252425,-430.0,0.00019726,2]
[363357538,1748692252435,-430.0,0.00019726,2]
[363357539,1748692252445,-668.47,0.00019726,2]
[363357540,1748692252456,-1813.53,0.00019726,2]
[363357541,1748692252467,-430.0,0.00019726,2]
[363357542,1748692252477,-576.77,0.00019726,2]
[363357543,1748692252487,-3524.6,0.00019726,2]
[363357544,1748692252496,-430.0,0.00019726,2]
[363357545,1748692252506,-430.0,0.00019726,2]
[363357546,1748692252518,-430.0,0.00019726,2]
[363357547,1748692252528,-1169.56,0.00019726,2]
[363357548,1748692252537,-3627.56,0.00019726,2]
[363357549,1748692252548,-2512.61,0.00019726,2]
[363357550,1748692252557,-430.0,0.00019726,2]
[363357551,1748692252566,-2938.95,0.00019726,2]
[363357552,1748692252576,-586.28,0.00019726,2]
[363357553,1748692252586,-499.32,0.00019726,2]
[363357554,1748692252595,-1692.57,0.00019726,2]
[363357555,1748692252604,-3129.24,0.00019726,2]
[363357556,1748692252614,-1575.39,0.00019726,2]
[363357557,1748692252624,-430.0,0.00019726,2]
[363357558,1748692252634,-471.27,0.00019726,2]
[363357559,1748692252644,-724.26,0.00019726,2]
[363357560,1748692252654,-614.59,0.00019726,2]
[363357561,1748692252664,-748.23,0.00019726,2]
[363357562,1748692252675,-835.01,0.00019726,2]
[363357563,1748692252684,-698.08,0.00019726,2]
[363357564,1748692252694,-430.0,0.00019726,2]
[363357565,1748692252704,-430.0,0.00019726,2]
[363357566,1748692252713,-633.51,0.00019726,2]
[363357567,1748692252723,-430.0,0.00019726,2]
[363357568,1748692252733,-430.0,0.00019726,2]
[363357569,1748692252743,-430.0,0.00019726,2]
[363357570,1748692252753,-430.0,0.00019726,2]
[363357571,1748692252763,-430.0,0.00019726,2]
[363357572,1748692252773,-430.0,0.00019726,2]
[363357573,1748692252783,-430.0,0.00019726,2]
[363357574,1748692252792,-734.66,0.00019726,2]
[363357575,1748692252802,-542.86,0.00019726,2]
[363357576,1748692252811,-430.0,0.00019726,2]
[363357577,1748692252821,-702.37,0.00019726,2]
[363357578,1748692252831,-4229.34,0.00019726,2]
[363357579,1748692252841,-430.0,0.00019726,2]
[363357580,1748692252851,-449.81,0.00019726,2]
[363357581,1748692252861,-774.95,0.00019726,2]
[363357582,1748692252870,-217.15233878,0.00019728,2]
[363357583,1748692252879,-225.18697532,0.00019783,2]
[363357584,1748692252889,-14159.90284882,0.000198,2]
[363357585,1748692252899,-151.0,0.000198,2]
[363357586,1748692252909,-151.0,0.000198,2]
[363357587,1748692252919,-162.692504,0.000198,2]
[363357588,1748692252929,-162.692504,0.000198,2]
[363357589,1748692252939,-3097.944437,0.000198,2]
[363357590,1748692252948,-3097.944437,0.000198,2]
[363357591,1748692252958,-233.51889341,0.00019838,2]
[363357592,1748692252968,-180.05779053,0.0001984,17]
[363357593,1748692252978,-500.0,0.00019858,2]
[363357594,1748692252988,-500.0,0.00019858,2]
[363357595,1748692252997,-500.0,0.00019873,2]
[363357596,1748692253007,-500.0,0.00019873,2]
[363357597,1748692253017,-502.27571044,0.00019873,2]
[363357598,1748692253027,-500.0,0.00019873,2]
[363357599,1748692253037,-500.0,0.00019873,2]
[363357600,1748692253047,-500.0,0.00019873,2]
[363357601,1748692253056,-500.0,0.00019873,2]
[363357602,1748692253066,-500.0,0.00019873,2]
[363357603,1748692253075,-500.0,0.00019873,2]
[363357604,1748692253086,-500.0,0.00019873,2]
[363357605,1748692253095,-242.15909246,0.00019893,2]
[363357606,1748692253105,-500.42355388,0.00019907,2]
[363357607,1748692253115,-347.47889072,0.00019907,2]
[363357608,1748692253125,-500.0,0.00019907,2]
[363357609,1748692253135,-500.0,0.00019907,2]
[363357610,1748692253144,-502.26417517,0.00019907,2]
[363357611,1748692253154,-500.0,0.00019907,2]
[363357612,1748692253164,-500.0,0.00019907,2]
[363357613,1748692253174,-500.0,0.00019907,2]
[363357614,1748692253183,-423.20417964,0.00019907,2]
[363357615,1748692253193,-500.0,0.00019907,2]
[363357616,1748692253202,-600.0,0.00019907,2]
[363357617,1748692253212,-500.0,0.00019907,2]
[363357618,1748692253222,-500.0,0.00019907,2]
[363357619,1748692253231,-500.0,0.00019907,2]
[363357620,1748692253241,-500.0,0.00019907,2]
[363357621,1748692253250,-501.59646273,0.00019907,2]
[363357622,1748692253260,-341.58993269,0.00019907,2]
[363357623,1748692253366,-500.0,0.0001991,2]
[363357624,1748692253380,-500.0,0.0001991,2]
[363357625,1748692253390,-506.58068065,0.0001991,2]
[363357626,1748692253399,-500.0,0.0001991,2]
[363357627,1748692253408,-500.0,0.0001991,2]
[363357628,1748692253418,-575.30694928,0.00019918,2]
[363357629,1748692253427,-4578.61881295,0.00019934,2]
[363357630,1748692253437,-251.11897888,0.00019948,2]
[363357631,1748692253446,-702.607,0.0001995,2]
[363357632,1748692253458,-500.0,0.00019967,2]
[363357633,1748692253468,-500.0,0.00019967,2]
[363357634,1748692253477,-191.33,0.0001999,5]
[363357635,1748692253486,-191.33,0.0001999,5]
[363357636,1748692253495,-191.33,0.0001999,5]
[363357637,1748692253505,-191.33,0.0001999,5]
[363357638,1748692253515,-191.33,0.0001999,4]
[363357639,1748692253525,-191.33,0.0001999,4]
[363357640,1748692253534,-191.33,0.0001999,4]
[363357641,1748692253544,-191.33,0.0001999,3]
[363357642,1748692253554,-191.33,0.0001999,3]
[363357643,1748692253563,-191.33,0.0001999,3]
[363357644,1748692253573,-187.0,0.0001999,2]
[363357645,1748692253582,-187.0,0.0001999,2]
[363357646,1748692253592,-186.18557612,0.0001999,2]
[363357647,1748692253601,-300.39179917,0.0002,2]
[363357648,1748692253611,-267.21668791,0.0002,2]
[363357649,1748692253621,-430.0,0.0002,2]
[363357650,1748692253630,-4262.0,0.0002,2]
[363357651,1748692253640,-593.18,0.0002,2]
[363357652,1748692253650,-430.0,0.0002,2]
[363357653,1748692253659,-430.0,0.0002,2]
[363357654,1748692253669,-250.0,0.0002,30]
[363357655,1748692253679,-668.47,0.0002,2]
[363357656,1748692253688,-1813.53,0.0002,2]
[363357657,1748692253698,-430.0,0.0002,2]
[363357658,1748692253708,-576.77,0.0002,2]
[363357659,1748692253717,-3524.6,0.0002,2]
[363357660,1748692253726,-430.0,0.0002,2]
[363357661,1748692253736,-430.0,0.0002,2]
[363357662,1748692253746,-430.0,0.0002,2]
[363357663,1748692253756,-1169.56,0.0002,2]
[363357664,1748692253765,-3627.56,0.0002,2]
[363357665,1748692253775,-2512.61,0.0002,2]
[363357666,1748692253784,-430.0,0.0002,2]
[363357667,1748692253794,-2938.95,0.0002,2]
[363357668,1748692253804,-586.28,0.0002,2]
[363357669,1748692253813,-499.32,0.0002,2]
[363357670,1748692253823,-1692.57,0.0002,2]
[363357671,1748692253833,-3129.24,0.0002,2]
[363357672,1748692253842,-1575.39,0.0002,2]
[363357673,1748692253853,-430.0,0.0002,2]
[363357674,1748692253862,-471.27,0.0002,2]
[363357675,1748692253872,-724.26,0.0002,2]
[363357676,1748692253881,-614.59,0.0002,2]
[363357677,1748692253891,-748.23,0.0002,2]
[363357678,1748692253900,-835.01,0.0002,2]
[363357679,1748692253911,-698.08,0.0002,2]
[363357680,1748692253920,-430.0,0.0002,2]
[363357681,1748692253930,-430.0,0.0002,2]
[363357682,1748692253940,-633.51,0.0002,2]
[363357683,1748692253950,-430.0,0.0002,2]
[363357684,1748692253959,-430.0,0.0002,2]
[363357685,1748692253969,-430.0,0.0002,2]
[363357686,1748692253979,-430.0,0.0002,2]
[363357687,1748692253988,-430.0,0.0002,2]
[363357688,1748692253998,-430.0,0.0002,2]
[363357689,1748692254007,-430.0,0.0002,2]
[363357690,1748692254016,-734.66,0.0002,2]
[363357691,1748692254026,-542.86,0.0002,2]
[363357692,1748692254035,-401.53332796,0.0002,2]
[363357693,1748692254045,-702.37,0.0002,2]
[363357694,1748692254055,-4229.34,0.0002,2]
[363357695,1748692254064,-4000.0,0.0002,4]
[363357696,1748692254073,-430.0,0.0002,2]
[363357697,1748692254083,-449.81,0.0002,2]
[363357698,1748692254093,-774.95,0.0002,2]
[363357699,1748692254102,-260.4103811,0.00020003,2]
[363357700,1748692254112,-270.0455652,0.00020058,2]
[363357701,1748692254122,-180.05779053,0.00020069,18]
[363357702,1748692254131,-151.0,0.000201,4]
[363357703,1748692254141,-280.03725112,0.00020113,2]
[363357704,1748692254151,-1200.0,0.0002016,2]
[363357705,1748692254160,-290.39862941,0.00020168,2]
[363357706,1748692254170,-500.0,0.00020192,2]
[363357707,1748692254179,-160.19413256,0.00020192,2]
[363357708,1748692254188,-4578.61881295,0.0002021,2]
[363357709,1748692254198,-301.1433787,0.00020223,2]
[363357710,1748692254207,-430.0,0.00020273,2]
[363357711,1748692254216,-593.18,0.00020273,2]
[363357712,1748692254226,-430.0,0.00020273,2]
[363357713,1748692254235,-430.0,0.00020273,2]
[363357714,1748692254245,-668.47,0.00020273,2]
[363357715,1748692254260,-1813.53,0.00020273,2]
[363357716,1748692254275,-430.0,0.00020273,2]
[363357717,1748692254285,-576.77,0.00020273,2]
[363357718,1748692254294,-3524.6,0.00020273,2]
[363357719,1748692254304,-430.0,0.00020273,2]
[363357720,1748692254314,-430.0,0.00020273,2]
[363357721,1748692254324,-430.0,0.00020273,2]
[363357722,1748692254334,-1169.56,0.00020273,2]
[363357723,1748692254344,-3627.56,0.00020273,2]
[363357724,1748692254354,-2512.61,0.00020273,2]
[363357725,1748692254364,-430.0,0.00020273,2]
[363357726,1748692254378,-2938.95,0.00020273,2]
[363357727,1748692254388,-586.28,0.00020273,2]
[363357728,1748692254398,-499.32,0.00020273,2]
[363357729,1748692254408,-1692.57,0.00020273,2]
[363357730,1748692254418,-3129.24,0.00020273,2]
[363357731,1748692254428,-1575.39,0.00020273,2]
[363357732,1748692254438,-430.0,0.00020273,2]
[363357733,1748692254447,-471.27,0.00020273,2]
[363357734,1748692254458,-724.26,0.00020273,2]
[363357735,1748692254469,-614.59,0.00020273,2]
[363357736,1748692254479,-748.23,0.00020273,2]
[363357737,1748692254489,-835.01,0.00020273,2]
[363357738,1748692254500,-698.08,0.00020273,2]
[363357739,1748692254510,-430.0,0.00020273,2]
[363357740,1748692254519,-430.0,0.00020273,2]
[363357741,1748692254529,-633.51,0.00020273,2]
[363357742,1748692254539,-496.83633894,0.00020273,2]
[363357743,1748692254550,-430.0,0.00020273,2]
[363357744,1748692254560,-466.14,0.00020273,2]
[363357745,1748692254570,-430.0,0.00020273,2]
[363357746,1748692254580,-430.0,0.00020273,2]
[363357747,1748692254589,-430.0,0.00020273,2]
[363357748,1748692254599,-734.66,0.00020273,2]
[363357749,1748692254608,-542.86,0.00020273,2]
[363357750,1748692254618,-702.37,0.00020273,2]
[363357751,1748692254628,-4229.34,0.00020273,2]
[363357752,1748692254638,-430.0,0.00020273,2]
[363357753,1748692254648,-449.81,0.00020273,2]
[363357754,1748692254658,-774.95,0.00020273,2]
[363357755,1748692254668,-180.05779053,0.00020298,20]
[363357756,1748692254678,-151.0,0.00020336,2]
[363357757,1748692254688,-207.4,0.00020336,2]
[363357758,1748692254698,-5000.0,0.00020336,2]
[363357759,1748692254708,-3508.37351693,0.00020336,2]
[363357760,1748692254718,-251.44409794,0.00020406,2]
[363357761,1748692254727,-1000.0,0.00020421,2]
[363357762,1748692254737,-1000.0,0.00020421,2]
[363357763,1748692254747,-1000.0,0.00020421,2]
[363357764,1748692254757,-1000.0,0.00020421,2]
[363357765,1748692254767,-1000.0,0.00020421,2]
[363357766,1748692254777,-1000.0,0.00020421,2]
[363357767,1748692254786,-540.41710014,0.00020421,2]
[363357768,1748692254796,-525.52033247,0.00020421,2]
[363357769,1748692254806,-1000.0,0.00020421,2]
[363357770,1748692254816,-1000.0,0.00020455,2]
[363357771,1748692254826,-1004.31260326,0.00020455,2]
[363357772,1748692254835,-421.21542315,0.00020455,2]
[363357773,1748692254845,-1000.0,0.00020455,2]
[363357774,1748692254855,-1000.0,0.00020455,2]
[363357775,1748692254864,-1000.0,0.00020455,2]
[363357776,1748692254874,-1000.0,0.00020455,2]
[363357777,1748692254884,-1200.0,0.00020455,2]
[363357778,1748692254893,-1000.0,0.00020455,2]
[363357779,1748692254903,-1007.04766132,0.00020455,2]
[363357780,1748692254914,-1008.86377791,0.00020455,2]
[363357781,1748692254923,-1000.0,0.00020458,2]
[363357782,1748692254933,-500.0,0.00020458,2]
[363357783,1748692254943,-151.0,0.00020486,2]
[363357784,1748692254953,-352.038617,0.00020486,2]
[363357785,1748692254962,-352.038617,0.00020486,2]
[363357786,1748692254972,-4578.61881295,0.00020486,3]
[363357787,1748692254982,-2000.0,0.000205,2]
[363357788,1748692254992,-180.05779053,0.00020526,21]
[363357789,1748692255001,-814.212827,0.00020547,2]
[363357790,1748692255012,-151.0,0.00020547,2]
[363357791,1748692255022,-475.777429,0.00020547,2]
[363357792,1748692255032,-475.777429,0.00020547,2]
[363357793,1748692255042,-430.0,0.00020547,2]
[363357794,1748692255051,-593.18,0.00020547,2]
[363357795,1748692255061,-430.0,0.00020547,2]
[363357796,1748692255071,-430.0,0.00020547,2]
[363357797,1748692255080,-668.47,0.00020547,2]
[363357798,1748692255090,-1813.53,0.00020547,2]
[363357799,1748692255100,-170.19,0.00020547,2]
[363357800,1748692255110,-576.77,0.00020547,2]
[363357801,1748692255121,-3524.6,0.00020547,2]
[363357802,1748692255131,-430.0,0.00020547,2]
[363357803,1748692255142,-430.0,0.00020547,2]
[363357804,1748692255152,-299.16733014,0.00020547,2]
[363357805,1748692255162,-1169.56,0.00020547,2]
[363357806,1748692255172,-3627.56,0.00020547,2]
[363357807,1748692255182,-2512.61,0.00020547,2]
[363357808,1748692255192,-430.0,0.00020547,2]
[363357809,1748692255201,-2938.95,0.00020547,2]
[363357810,1748692255211,-586.28,0.00020547,2]
[363357811,1748692255221,-499.32,0.00020547,2]
[363357812,1748692255231,-1692.57,0.00020547,2]
[363357813,1748692255241,-3129.24,0.00020547,2]
[363357814,1748692255250,-1575.39,0.00020547,2]
[363357815,1748692255260,-430.0,0.00020547,2]
[363357816,1748692255388,-471.27,0.00020547,2]
[363357817,1748692255399,-724.26,0.00020547,2]
[363357818,1748692255409,-614.59,0.00020547,2]
[363357819,1748692255418,-748.23,0.00020547,2]
[363357820,1748692255428,-835.01,0.00020547,2]
[363357821,1748692255437,-698.08,0.00020547,2]
[363357822,1748692255448,-152.087997,0.00020547,2]
[363357823,1748692255458,-430.0,0.00020547,2]
[363357824,1748692255468,-430.0,0.00020547,2]
[363357825,1748692255478,-633.51,0.00020547,2]
[363357826,1748692255487,-430.0,0.00020547,2]
[363357827,1748692255497,-430.0,0.00020547,2]
[363357828,1748692255506,-430.0,0.00020547,2]
[363357829,1748692255516,-430.0,0.00020547,2]
[363357830,1748692255525,-734.66,0.00020547,2]
[363357831,1748692255535,-542.86,0.00020547,2]
[363357832,1748692255545,-702.37,0.00020547,2]
[363357833,1748692255555,-4229.34,0.00020547,2]
[363357834,1748692255564,-430.0,0.00020547,2]
[363357835,1748692255574,-449.81,0.00020547,2]
[363357836,1748692255584,-774.95,0.00020547,2]
[363357837,1748692255594,-362.332697,0.000206,2]
[363357838,1748692255604,-362.332697,0.000206,2]
[363357839,1748692255614,-1723.783253,0.000206,2]
[363357840,1748692255623,-1723.783253,0.000206,2]
[363357841,1748692255633,-151.0,0.000206,4]
[363357842,1748692255642,-1072.65,0.000206,2]
[363357843,1748692255652,-4022.58,0.000206,2]
[363357844,1748692255662,-151.0,0.000206,2]
[363357845,1748692255673,-9874.37,0.000206,2]
[363357846,1748692255682,-89217.32,0.000206,2]
[363357847,1748692255692,-151.0,0.000206,2]
[363357848,1748692255701,-151.0,0.000206,2]
[363357849,1748692255710,-151.0,0.000206,2]
[363357850,1748692255720,-151.0,0.000206,2]
[363357851,1748692255729,-359.292158,0.000206,2]
[363357852,1748692255739,-359.292158,0.000206,2]
[363357853,1748692255748,-151.0,0.000206,2]
[363357854,1748692255758,-5000.0,0.00020697,2]
[363357855,1748692255767,-1000.0,0.0002074,2]
[363357856,1748692255776,-180.05779053,0.00020755,22]
[363357857,1748692255785,-4578.61881295,0.00020762,3]
[363357858,1748692255795,-151.0,0.00020821,2]
[363357859,1748692255804,-314.15260182,0.00020821,2]
[363357860,1748692255813,-593.18,0.00020821,2]
[363357861,1748692255822,-430.0,0.00020821,2]
[363357862,1748692255832,-430.0,0.00020821,2]
[363357863,1748692255840,-246.575222,0.00020821,2]
[363357864,1748692255850,-175.165767,0.00020821,2]
[363357865,1748692255859,-246.575222,0.00020821,2]
[363357866,1748692255868,-175.165767,0.00020821,2]
[363357867,1748692255877,-151.0,0.00020821,2]
[363357868,1748692255886,-668.47,0.00020821,2]
[363357869,1748692255895,-1813.53,0.00020821,2]
[363357870,1748692255905,-576.77,0.00020821,2]
[363357871,1748692255914,-3524.6,0.00020821,2]
[363357872,1748692255924,-430.0,0.00020821,2]
[363357873,1748692255933,-430.0,0.00020821,2]
[363357874,1748692255942,-1169.56,0.00020821,2]
[363357875,1748692255951,-3627.56,0.00020821,2]
[363357876,1748692255960,-2512.61,0.00020821,2]
[363357877,1748692255969,-430.0,0.00020821,2]
[363357878,1748692255978,-2938.95,0.00020821,2]
[363357879,1748692255987,-586.28,0.00020821,2]
[363357880,1748692255996,-499.32,0.00020821,2]
[363357881,1748692256005,-1692.57,0.00020821,2]
[363357882,1748692256014,-2055.885018,0.00020821,2]
[363357883,1748692256023,-162.692504,0.00020821,2]
[363357884,1748692256032,-2055.885018,0.00020821,2]
[363357885,1748692256041,-162.692504,0.00020821,2]
[363357886,1748692256050,-3129.24,0.00020821,2]
[363357887,1748692256059,-1575.39,0.00020821,2]
[363357888,1748692256068,-430.0,0.00020821,2]
[363357889,1748692256077,-471.27,0.00020821,2]
[363357890,1748692256086,-724.26,0.00020821,2]
[363357891,1748692256096,-614.59,0.00020821,2]
[363357892,1748692256105,-748.23,0.00020821,2]
[363357893,1748692256114,-3097.944437,0.00020821,2]
[363357894,1748692256124,-835.01,0.00020821,2]
[363357895,1748692256133,-3097.944437,0.00020821,2]
[363357896,1748692256142,-698.08,0.00020821,2]
[363357897,1748692256151,-430.0,0.00020821,2]
[363357898,1748692256160,-430.0,0.00020821,2]
[363357899,1748692256170,-633.51,0.00020821,2]
[363357900,1748692256179,-214.82,0.00020821,2]
[363357901,1748692256188,-430.0,0.00020821,2]
[363357902,1748692256198,-430.0,0.00020821,2]
[363357903,1748692256206,-151.0,0.00020821,2]
[363357904,1748692256215,-430.0,0.00020821,2]
[363357905,1748692256224,-734.66,0.00020821,2]
[363357906,1748692256233,-542.86,0.00020821,2]
[363357907,1748692256243,-702.37,0.00020821,2]
[363357908,1748692256251,-4229.34,0.00020821,2]
[363357909,1748692256260,-430.0,0.00020821,2]
[363357910,1748692256270,-449.81,0.00020821,2]
[363357911,1748692256279,-774.95,0.00020821,2]
[363357912,1748692256287,-151.0,0.00020884,2]
[363357913,1748692256297,-5000.0,0.00020884,2]
[363357914,1748692256306,-1500.0,0.00020969,2]
[363357915,1748692256316,-1500.0,0.00020969,2]
[363357916,1748692256326,-1536.43297428,0.00020969,2]
[363357917,1748692256335,-250.0,0.00020971,2]
[363357918,1748692256345,-180.05779053,0.00020984,24]
[363357919,1748692256354,-191.33,0.00021,6]
[363357920,1748692256364,-191.33,0.00021,6]
[363357921,1748692256376,-2000.0,0.00021,2]
[363357922,1748692256387,-1500.0,0.00021003,2]
[363357923,1748692256397,-1500.0,0.00021003,2]
[363357924,1748692256407,-1800.0,0.00021003,2]
[363357925,1748692256418,-4578.61881295,0.00021038,4]
[363357926,1748692256427,-631.19582775,0.00021055,2]
[363357927,1748692256438,-159.82013329,0.00021068,2]
[363357928,1748692256447,-593.18,0.00021095,2]
[363357929,1748692256458,-430.0,0.00021095,2]
[363357930,1748692256467,-430.0,0.00021095,2]
[363357931,1748692256477,-668.47,0.00021095,2]
[363357932,1748692256486,-1813.53,0.00021095,2]
[363357933,1748692256496,-576.77,0.00021095,2]
[363357934,1748692256505,-3524.6,0.00021095,2]
[363357935,1748692256515,-327.00335922,0.00021095,2]
[363357936,1748692256525,-1169.56,0.00021095,2]
[363357937,1748692256536,-3627.56,0.00021095,2]
[363357938,1748692256545,-2512.61,0.00021095,2]
[363357939,1748692256555,-430.0,0.00021095,2]
[363357940,1748692256564,-2938.95,0.00021095,2]
[363357941,1748692256574,-586.28,0.00021095,2]
[363357942,1748692256583,-499.32,0.00021095,2]
[363357943,1748692256593,-1692.57,0.00021095,2]
[363357944,1748692256602,-3129.24,0.00021095,2]
[363357945,1748692256612,-1575.39,0.00021095,2]
[363357946,1748692256621,-430.0,0.00021095,2]
[363357947,1748692256630,-471.27,0.00021095,2]
[363357948,1748692256639,-724.26,0.00021095,2]
[363357949,1748692256649,-614.59,0.00021095,2]
[363357950,1748692256659,-748.23,0.00021095,2]
[363357951,1748692256670,-835.01,0.00021095,2]
[363357952,1748692256680,-698.08,0.00021095,2]
[363357953,1748692256689,-430.0,0.00021095,2]
[363357954,1748692256699,-430.0,0.00021095,2]
[363357955,1748692256708,-633.51,0.00021095,2]
[363357956,1748692256718,-430.0,0.00021095,2]
[363357957,1748692256727,-181.01,0.00021095,2]
[363357958,1748692256737,-293.06623274,0.00021095,2]
[363357959,1748692256747,-734.66,0.00021095,2]
[363357960,1748692256756,-542.86,0.00021095,2]
[363357961,1748692256766,-702.37,0.00021095,2]
[363357962,1748692256776,-4229.34,0.00021095,2]
[363357963,1748692256786,-430.0,0.00021095,2]
[363357964,1748692256795,-449.81,0.00021095,2]
[363357965,1748692256804,-774.95,0.00021095,2]
[363357966,1748692256814,-180.05779053,0.00021213,25]
[363357967,1748692256823,-1200.0,0.00021256,2]
[363357968,1748692256833,-631.19582775,0.00021273,2]
[363357969,1748692256842,-785.67556329,0.00021288,2]
[363357970,1748692256851,-5537.17,0.00021306,2]
[363357971,1748692256861,-4578.61881295,0.00021314,5]
[363357972,1748692256870,-159.82013329,0.00021342,2]
[363357973,1748692256880,-814.212827,0.00021369,2]
[363357974,1748692256889,-277.238445,0.00021369,2]
[363357975,1748692256898,-475.777429,0.00021369,2]
[363357976,1748692256908,-475.777429,0.00021369,2]
[363357977,1748692256919,-593.18,0.00021369,2]
[363357978,1748692256928,-430.0,0.00021369,2]
[363357979,1748692256938,-430.0,0.00021369,2]
[363357980,1748692256948,-668.47,0.00021369,2]
[363357981,1748692256957,-1813.53,0.00021369,2]
[363357982,1748692256967,-576.77,0.00021369,2]
[363357983,1748692256977,-3524.6,0.00021369,2]
[363357984,1748692256987,-1169.56,0.00021369,2]